{"text_format":"3","workbook":"xlsx","n_sheets":1,"sheets":["Išlaidų biudžetas"],"not_rendered":{"charts":2,"defined_names":3},"read":"whole","date_system":"1900"}

{"sheet":"Išlaidų biudžetas","index":0,"n_rows":48,"n_cols":7,"rows_kept":48,"merged":[[0,1,0,4],[0,5,0,6],[16,1,16,6],[48,1,48,6]]}
[null,"Išlaidų biudžetas",{"$nulls":3},"CONTOSO, 2013"]
[]
[]
[null," PERSONALO BIUDŽETAS"]
{"$rows_empty":7}
[null,"BŪSENA","PERSONALAS","BIUDŽETAS","FAKTINIS","SKIRTUMAS ($)","SKIRTUMAS (%)"]
[null,{"$f":"IFERROR(lntPersonaloIšlaidos[[#This Row],[FAKTINIS]]/lntPersonaloIšlaidos[[#This Row],[BIUDŽETAS]],\"\")","v":{"v":1.13,"d":"$1.13"}},"Biuras",{"v":500,"d":"500.00 Lt"},{"v":565,"d":"565.00 Lt"},{"$f":"lntPersonaloIšlaidos[[#This Row],[BIUDŽETAS]]-lntPersonaloIšlaidos[[#This Row],[FAKTINIS]]","v":{"v":-65,"d":"-65.00 Lt"}},{"$f":"IFERROR(lntPersonaloIšlaidos[SKIRTUMAS ($)]/lntPersonaloIšlaidos[BIUDŽETAS],\"\")","v":{"v":-0.13,"d":"-13%"}}]
[null,{"$f":"IFERROR(lntPersonaloIšlaidos[[#This Row],[FAKTINIS]]/lntPersonaloIšlaidos[[#This Row],[BIUDŽETAS]],\"\")","v":{"v":1.2,"d":"$1.20"}},"Parduotuvė",{"v":125,"d":"125.00 Lt"},{"v":150,"d":"150.00 Lt"},{"$f":"lntPersonaloIšlaidos[[#This Row],[BIUDŽETAS]]-lntPersonaloIšlaidos[[#This Row],[FAKTINIS]]","v":{"v":-25,"d":"-25.00 Lt"}},{"$f":"IFERROR(lntPersonaloIšlaidos[SKIRTUMAS ($)]/lntPersonaloIšlaidos[BIUDŽETAS],\"\")","v":{"v":-0.2,"d":"-20%"}}]
[null,{"$f":"IFERROR(lntPersonaloIšlaidos[[#This Row],[FAKTINIS]]/lntPersonaloIšlaidos[[#This Row],[BIUDŽETAS]],\"\")","v":{"v":1,"d":"$1.00"}},"Pardavėjai",{"v":100,"d":"100.00 Lt"},{"v":100,"d":"100.00 Lt"},{"$f":"lntPersonaloIšlaidos[[#This Row],[BIUDŽETAS]]-lntPersonaloIšlaidos[[#This Row],[FAKTINIS]]","v":{"v":0,"d":"0.00 Lt"}},{"$f":"IFERROR(lntPersonaloIšlaidos[SKIRTUMAS ($)]/lntPersonaloIšlaidos[BIUDŽETAS],\"\")","v":{"v":0,"d":"0%"}}]
[null,{"$f":"IFERROR(lntPersonaloIšlaidos[[#This Row],[FAKTINIS]]/lntPersonaloIšlaidos[[#This Row],[BIUDŽETAS]],\"\")","v":{"v":0.9,"d":"$0.90"}},"Kita",{"v":100,"d":"100.00 Lt"},{"v":90,"d":"90.00 Lt"},{"$f":"lntPersonaloIšlaidos[[#This Row],[BIUDŽETAS]]-lntPersonaloIšlaidos[[#This Row],[FAKTINIS]]","v":{"v":10,"d":"10.00 Lt"}},{"$f":"IFERROR(lntPersonaloIšlaidos[SKIRTUMAS ($)]/lntPersonaloIšlaidos[BIUDŽETAS],\"\")","v":{"v":0.1,"d":"10%"}}]
[]
[]
[null," DARBINIS BIUDŽETAS"]
{"$rows_empty":8}
[null,"BŪSENA","DARBINIS","BIUDŽETAS","FAKTINIS","SKIRTUMAS ($)","SKIRTUMAS (%)"]
[null,{"$f":"IFERROR(lntVeiklosIšlaidos[[#This Row],[FAKTINIS]]/lntVeiklosIšlaidos[[#This Row],[BIUDŽETAS]],\"\")","v":{"v":0.98,"d":"$0.98"}},"Reklama",{"v":250,"d":"250.00 Lt"},{"v":245,"d":"245.00 Lt"},{"$f":"lntVeiklosIšlaidos[[#This Row],[BIUDŽETAS]]-lntVeiklosIšlaidos[[#This Row],[FAKTINIS]]","v":{"v":5,"d":"5.00 Lt"}},{"$f":"IFERROR(lntVeiklosIšlaidos[[#This Row],[SKIRTUMAS ($)]]/lntVeiklosIšlaidos[[#This Row],[BIUDŽETAS]],\"\")","v":{"v":0.02,"d":"2%"}}]
[null,{"$f":"IFERROR(lntVeiklosIšlaidos[[#This Row],[FAKTINIS]]/lntVeiklosIšlaidos[[#This Row],[BIUDŽETAS]],\"\")","v":{"v":1.2,"d":"$1.20"}},"Skolos",{"v":125,"d":"125.00 Lt"},{"v":150,"d":"150.00 Lt"},{"$f":"lntVeiklosIšlaidos[[#This Row],[BIUDŽETAS]]-lntVeiklosIšlaidos[[#This Row],[FAKTINIS]]","v":{"v":-25,"d":"-25.00 Lt"}},{"$f":"IFERROR(lntVeiklosIšlaidos[[#This Row],[SKIRTUMAS ($)]]/lntVeiklosIšlaidos[[#This Row],[BIUDŽETAS]],\"\")","v":{"v":-0.2,"d":"-20%"}}]
[null,{"$f":"IFERROR(lntVeiklosIšlaidos[[#This Row],[FAKTINIS]]/lntVeiklosIšlaidos[[#This Row],[BIUDŽETAS]],\"\")","v":{"v":1,"d":"$1.00"}},"Pranašumai",{"v":100,"d":"100.00 Lt"},{"v":100,"d":"100.00 Lt"},{"$f":"lntVeiklosIšlaidos[[#This Row],[BIUDŽETAS]]-lntVeiklosIšlaidos[[#This Row],[FAKTINIS]]","v":{"v":0,"d":"0.00 Lt"}},{"$f":"IFERROR(lntVeiklosIšlaidos[[#This Row],[SKIRTUMAS ($)]]/lntVeiklosIšlaidos[[#This Row],[BIUDŽETAS]],\"\")","v":{"v":0,"d":"0%"}}]
[null,{"$f":"IFERROR(lntVeiklosIšlaidos[[#This Row],[FAKTINIS]]/lntVeiklosIšlaidos[[#This Row],[BIUDŽETAS]],\"\")","v":{"v":0.9,"d":"$0.90"}},"Ištekliai",{"v":100,"d":"100.00 Lt"},{"v":90,"d":"90.00 Lt"},{"$f":"lntVeiklosIšlaidos[[#This Row],[BIUDŽETAS]]-lntVeiklosIšlaidos[[#This Row],[FAKTINIS]]","v":{"v":10,"d":"10.00 Lt"}},{"$f":"IFERROR(lntVeiklosIšlaidos[[#This Row],[SKIRTUMAS ($)]]/lntVeiklosIšlaidos[[#This Row],[BIUDŽETAS]],\"\")","v":{"v":0.1,"d":"10%"}}]
[null,{"$f":"IFERROR(lntVeiklosIšlaidos[[#This Row],[FAKTINIS]]/lntVeiklosIšlaidos[[#This Row],[BIUDŽETAS]],\"\")","v":""},"Pašto išlaidos",null,null,{"$f":"lntVeiklosIšlaidos[[#This Row],[BIUDŽETAS]]-lntVeiklosIšlaidos[[#This Row],[FAKTINIS]]","v":{"v":0,"d":"0.00 Lt"}},{"$f":"IFERROR(lntVeiklosIšlaidos[[#This Row],[SKIRTUMAS ($)]]/lntVeiklosIšlaidos[[#This Row],[BIUDŽETAS]],\"\")","v":""}]
[null,{"$f":"IFERROR(lntVeiklosIšlaidos[[#This Row],[FAKTINIS]]/lntVeiklosIšlaidos[[#This Row],[BIUDŽETAS]],\"\")","v":""},"Nuoma arba paskola",null,null,{"$f":"lntVeiklosIšlaidos[[#This Row],[BIUDŽETAS]]-lntVeiklosIšlaidos[[#This Row],[FAKTINIS]]","v":{"v":0,"d":"0.00 Lt"}},{"$f":"IFERROR(lntVeiklosIšlaidos[[#This Row],[SKIRTUMAS ($)]]/lntVeiklosIšlaidos[[#This Row],[BIUDŽETAS]],\"\")","v":""}]
[null,{"$f":"IFERROR(lntVeiklosIšlaidos[[#This Row],[FAKTINIS]]/lntVeiklosIšlaidos[[#This Row],[BIUDŽETAS]],\"\")","v":""},"Pardavimo išlaidos",null,null,{"$f":"lntVeiklosIšlaidos[[#This Row],[BIUDŽETAS]]-lntVeiklosIšlaidos[[#This Row],[FAKTINIS]]","v":{"v":0,"d":"0.00 Lt"}},{"$f":"IFERROR(lntVeiklosIšlaidos[[#This Row],[SKIRTUMAS ($)]]/lntVeiklosIšlaidos[[#This Row],[BIUDŽETAS]],\"\")","v":""}]
[null,{"$f":"IFERROR(lntVeiklosIšlaidos[[#This Row],[FAKTINIS]]/lntVeiklosIšlaidos[[#This Row],[BIUDŽETAS]],\"\")","v":""},"Mokesčiai",null,null,{"$f":"lntVeiklosIšlaidos[[#This Row],[BIUDŽETAS]]-lntVeiklosIšlaidos[[#This Row],[FAKTINIS]]","v":{"v":0,"d":"0.00 Lt"}},{"$f":"IFERROR(lntVeiklosIšlaidos[[#This Row],[SKIRTUMAS ($)]]/lntVeiklosIšlaidos[[#This Row],[BIUDŽETAS]],\"\")","v":""}]
[null,{"$f":"IFERROR(lntVeiklosIšlaidos[[#This Row],[FAKTINIS]]/lntVeiklosIšlaidos[[#This Row],[BIUDŽETAS]],\"\")","v":""},"Komunalinės paslaugos",null,null,{"$f":"lntVeiklosIšlaidos[[#This Row],[BIUDŽETAS]]-lntVeiklosIšlaidos[[#This Row],[FAKTINIS]]","v":{"v":0,"d":"0.00 Lt"}},{"$f":"IFERROR(lntVeiklosIšlaidos[[#This Row],[SKIRTUMAS ($)]]/lntVeiklosIšlaidos[[#This Row],[BIUDŽETAS]],\"\")","v":""}]
[null,{"$f":"IFERROR(lntVeiklosIšlaidos[[#This Row],[FAKTINIS]]/lntVeiklosIšlaidos[[#This Row],[BIUDŽETAS]],\"\")","v":""},"Kita",null,null,{"$f":"lntVeiklosIšlaidos[[#This Row],[BIUDŽETAS]]-lntVeiklosIšlaidos[[#This Row],[FAKTINIS]]","v":{"v":0,"d":"0.00 Lt"}},{"$f":"IFERROR(lntVeiklosIšlaidos[[#This Row],[SKIRTUMAS ($)]]/lntVeiklosIšlaidos[[#This Row],[BIUDŽETAS]],\"\")","v":""}]
[null,{"$f":"IFERROR(lntVeiklosIšlaidos[[#This Row],[FAKTINIS]]/lntVeiklosIšlaidos[[#This Row],[BIUDŽETAS]],\"\")","v":""},"Draudimas",null,null,{"$f":"lntVeiklosIšlaidos[[#This Row],[BIUDŽETAS]]-lntVeiklosIšlaidos[[#This Row],[FAKTINIS]]","v":{"v":0,"d":"0.00 Lt"}},{"$f":"IFERROR(lntVeiklosIšlaidos[[#This Row],[SKIRTUMAS ($)]]/lntVeiklosIšlaidos[[#This Row],[BIUDŽETAS]],\"\")","v":""}]
[null,{"$f":"IFERROR(lntVeiklosIšlaidos[[#This Row],[FAKTINIS]]/lntVeiklosIšlaidos[[#This Row],[BIUDŽETAS]],\"\")","v":""},"Palūkanos",null,null,{"$f":"lntVeiklosIšlaidos[[#This Row],[BIUDŽETAS]]-lntVeiklosIšlaidos[[#This Row],[FAKTINIS]]","v":{"v":0,"d":"0.00 Lt"}},{"$f":"IFERROR(lntVeiklosIšlaidos[[#This Row],[SKIRTUMAS ($)]]/lntVeiklosIšlaidos[[#This Row],[BIUDŽETAS]],\"\")","v":""}]
[null,{"$f":"IFERROR(lntVeiklosIšlaidos[[#This Row],[FAKTINIS]]/lntVeiklosIšlaidos[[#This Row],[BIUDŽETAS]],\"\")","v":""},"Telefonas",null,null,{"$f":"lntVeiklosIšlaidos[[#This Row],[BIUDŽETAS]]-lntVeiklosIšlaidos[[#This Row],[FAKTINIS]]","v":{"v":0,"d":"0.00 Lt"}},{"$f":"IFERROR(lntVeiklosIšlaidos[[#This Row],[SKIRTUMAS ($)]]/lntVeiklosIšlaidos[[#This Row],[BIUDŽETAS]],\"\")","v":""}]
[null,{"$f":"IFERROR(lntVeiklosIšlaidos[[#This Row],[FAKTINIS]]/lntVeiklosIšlaidos[[#This Row],[BIUDŽETAS]],\"\")","v":""},"Priežiūra ir remontas",null,null,{"$f":"lntVeiklosIšlaidos[[#This Row],[BIUDŽETAS]]-lntVeiklosIšlaidos[[#This Row],[FAKTINIS]]","v":{"v":0,"d":"0.00 Lt"}},{"$f":"IFERROR(lntVeiklosIšlaidos[[#This Row],[SKIRTUMAS ($)]]/lntVeiklosIšlaidos[[#This Row],[BIUDŽETAS]],\"\")","v":""}]
[null,{"$f":"IFERROR(lntVeiklosIšlaidos[[#This Row],[FAKTINIS]]/lntVeiklosIšlaidos[[#This Row],[BIUDŽETAS]],\"\")","v":""},"Teisiniai mokesčiai",null,null,{"$f":"lntVeiklosIšlaidos[[#This Row],[BIUDŽETAS]]-lntVeiklosIšlaidos[[#This Row],[FAKTINIS]]","v":{"v":0,"d":"0.00 Lt"}},{"$f":"IFERROR(lntVeiklosIšlaidos[[#This Row],[SKIRTUMAS ($)]]/lntVeiklosIšlaidos[[#This Row],[BIUDŽETAS]],\"\")","v":""}]
[null,{"$f":"IFERROR(lntVeiklosIšlaidos[[#This Row],[FAKTINIS]]/lntVeiklosIšlaidos[[#This Row],[BIUDŽETAS]],\"\")","v":""},"Nusidėvėjimas",null,null,{"$f":"lntVeiklosIšlaidos[[#This Row],[BIUDŽETAS]]-lntVeiklosIšlaidos[[#This Row],[FAKTINIS]]","v":{"v":0,"d":"0.00 Lt"}},{"$f":"IFERROR(lntVeiklosIšlaidos[[#This Row],[SKIRTUMAS ($)]]/lntVeiklosIšlaidos[[#This Row],[BIUDŽETAS]],\"\")","v":""}]
[null,{"$f":"IFERROR(lntVeiklosIšlaidos[[#This Row],[FAKTINIS]]/lntVeiklosIšlaidos[[#This Row],[BIUDŽETAS]],\"\")","v":""},"Siuntimas",null,null,{"$f":"lntVeiklosIšlaidos[[#This Row],[BIUDŽETAS]]-lntVeiklosIšlaidos[[#This Row],[FAKTINIS]]","v":{"v":0,"d":"0.00 Lt"}},{"$f":"IFERROR(lntVeiklosIšlaidos[[#This Row],[SKIRTUMAS ($)]]/lntVeiklosIšlaidos[[#This Row],[BIUDŽETAS]],\"\")","v":""}]
[null,{"$f":"IFERROR(lntVeiklosIšlaidos[[#This Row],[FAKTINIS]]/lntVeiklosIšlaidos[[#This Row],[BIUDŽETAS]],\"\")","v":""},"Saugojimas",null,null,{"$f":"lntVeiklosIšlaidos[[#This Row],[BIUDŽETAS]]-lntVeiklosIšlaidos[[#This Row],[FAKTINIS]]","v":{"v":0,"d":"0.00 Lt"}},{"$f":"IFERROR(lntVeiklosIšlaidos[[#This Row],[SKIRTUMAS ($)]]/lntVeiklosIšlaidos[[#This Row],[BIUDŽETAS]],\"\")","v":""}]
[null,{"$f":"IFERROR(lntVeiklosIšlaidos[[#This Row],[FAKTINIS]]/lntVeiklosIšlaidos[[#This Row],[BIUDŽETAS]],\"\")","v":""},"Kita",null,null,{"$f":"lntVeiklosIšlaidos[[#This Row],[BIUDŽETAS]]-lntVeiklosIšlaidos[[#This Row],[FAKTINIS]]","v":{"v":0,"d":"0.00 Lt"}},{"$f":"IFERROR(lntVeiklosIšlaidos[[#This Row],[SKIRTUMAS ($)]]/lntVeiklosIšlaidos[[#This Row],[BIUDŽETAS]],\"\")","v":""}]
[null,null,"Bendrosios išlaidos",{"$f":"SUBTOTAL(109,lntVeiklosIšlaidos[BIUDŽETAS],lntPersonaloIšlaidos[BIUDŽETAS])","v":{"v":1400,"d":"1,400.00 Lt"}},{"$f":"SUBTOTAL(109,lntVeiklosIšlaidos[FAKTINIS],lntPersonaloIšlaidos[FAKTINIS])","v":{"v":1490,"d":"1,490.00 Lt"}},{"$f":"SUBTOTAL(109,lntVeiklosIšlaidos[SKIRTUMAS ($)],lntPersonaloIšlaidos[SKIRTUMAS ($)])","v":{"v":-90,"d":"-90.00 Lt"}},{"$f":"IFERROR(SUM(lntVeiklosIšlaidos[[#Totals],[SKIRTUMAS ($)]]/lntVeiklosIšlaidos[[#Totals],[BIUDŽETAS]]),\"\")","v":{"v":-0.06428571428571428,"d":"-6%"}}]